[Event "European School-ch 2019"]
[Site "Mamaia"]
[Date "2019.06.01"]
[Round "2.23"]
[White "Nemsadze, Daviti"]
[Black "Butolo, Alexandru-Mircea"]
[Result "1/2-1/2"]
[ECO "A04"]
[WhiteElo "1803"]
[BlackElo "1553"]
[Annotator "NA"]
[PlyCount "34"]
[EventDate "2019.05.31"]
[EventType "swiss"]
[EventCountry "ROU"]
[SourceTitle "playchess.com"]
[Source "ChessBase"]
[SourceQuality "1"]
[TimeControl "40/5400+30:1800+30"]

1. Nf3 {[%emt 0:00:00]} c5 {[%emt 0:00:42]} 2. c4 {[%emt 0:00:00]} Nc6 {[%emt 0:00:46]} 3. g3 {[%emt 0:01:12]} g6 {[%emt 0:00:17]} 4. Bg2 {[%emt 0:00:03]} Bg7 {[%emt 0:00:19]} 5. O-O {[%emt 0:00:14]} e5 {[%emt 0:00:24]} 6. Nc3 {[%emt 0:00:06]} Nge7 {[%emt 0:00:16]} 7. d3 {[%emt 0:00:09]} O-O {[%emt 0:00:48]} 8. Ne1 {[%emt 0:00:17]} d6 {[%emt 0:01:27]} 9. Nc2 {[%emt 0:00:16]} Be6 {[%emt 0:02:27]} 10. Nd5 {[%emt 0:00:42]} f5 {[%emt 0:01:08]} 11. Rb1 {[%emt 0:00:39]} a5 {[%emt 0:00:27]} 12. Na3 {[%emt 0:10:53]} Nb4 {[%emt 0:04:52]} 13. e4 {[%emt 0:10:27]} Nexd5 {[%emt 0:06:09]} 14. exd5 {[%emt 0:10:05]} Bd7 {[%emt 0:02:56]} 15. Ra1 {[%emt 0:00:27]} Qe8 {[%emt 0:01:31]} 16. Re1 {[%emt 0:08:03]} Qf7 {[%emt 0:13:41]} 17. f3 {[%emt 0:14:30]} f4 1/2-1/2

[Event "European School-ch 2019"]
[Site "Mamaia"]
[Date "2019.06.01"]
[Round "2.24"]
[White "Gusev, Mikhail"]
[Black "Kolesov, Gordey"]
[Result "1-0"]
[ECO "C70"]
[WhiteElo "1463"]
[BlackElo "1745"]
[Annotator "NA"]
[PlyCount "75"]
[EventDate "2019.05.31"]
[EventType "swiss"]
[EventCountry "ROU"]
[SourceTitle "playchess.com"]
[Source "ChessBase"]
[SourceQuality "1"]
[TimeControl "40/5400+30:1800+30"]

1. e4 {[%emt 0:00:00]} e5 {[%emt 0:00:00]} 2. Nf3 {[%emt 0:00:00]} Nc6 {[%emt 0:00:00]} 3. Bb5 {[%emt 0:00:00]} a6 {[%emt 0:00:00]} 4. Ba4 {[%emt 0:00:06]} g6 {[%emt 0:00:16]} 5. d4 {[%emt 0:00:36]} b5 {[%emt 0:00:16]} 6. Bb3 {[%emt 0:00:04]} exd4 {[%emt 0:00:07]} 7. c3 {[%emt 0:00:17]} Bg7 {[%emt 0:01:40]} 8. cxd4 {[%emt 0:00:01]} d6 {[%emt 0:02:51]} 9. O-O {[%emt 0:01:56]} Nge7 {[%emt 0:07:25]} 10. Be3 {[%emt 0:04:55]} O-O {[%emt 0:00:29]} 11. Nc3 {[%emt 0:00:58]} Na5 {[%emt 0:01:21]} 12. Qd2 {[%emt 0:03:59]} Nxb3 {[%emt 0:01:12]} 13. axb3 {[%emt 0:00:03]} Bg4 {[%emt 0:04:13]} 14. Ne1 {[%emt 0:04:49]} b4 {[%emt 0:15:31]} 15. Ne2 {[%emt 0:00:26]} Qb8 {[%emt 0:06:10]} 16. h3 {[%emt 0:02:35]} Bd7 {[%emt 0:02:07]} 17. Nf3 {[%emt 0:01:21]} Qb7 {[%emt 0:08:28]} 18. Ng3 {[%emt 0:01:23]} f5 {[%emt 0:10:57]} 19. exf5 {[%emt 0:04:42]} Nxf5 {[%emt 0:00:40]} 20. Nxf5 {[%emt 0:00:21]} Bxf5 {[%emt 0:02:52]} 21. Bh6 {[%emt 0:01:14]} Bxh3 {[%emt 0:06:00]} 22. Bxg7 {[%emt 0:01:56]} Kxg7 {[%emt 0:02:18]} 23. d5 {[%emt 0:00:27]} Bd7 {[%emt 0:11:51]} 24. Rfe1 {[%emt 0:03:23]} Rae8 {[%emt 0:03:43]} 25. Qg5 {[%emt 0:01:10]} Bf5 {[%emt 0:04:44]} 26. Qd2 {[%emt 0:03:25]} Qb6 {[%emt 0:01:10]} 27. Nd4 {[%emt 0:13:38]} Bd7 {[%emt 0:00:17]} 28. Rac1 {[%emt 0:02:14]} a5 {[%emt 0:02:40]} 29. Re3 {[%emt 0:03:37]} Rxe3 {[%emt 0:00:41]} 30. Qxe3 {[%emt 0:00:45]} Re8 {[%emt 0:00:45]} 31. Qf4 {[%emt 0:01:06]} Re5 {[%emt 0:01:12]} 32. Nf3 {[%emt 0:03:39]} Rxd5 {[%emt 0:01:50]} 33. Re1 {[%emt 0:00:14]} Rf5 {[%emt 0:00:45]} 34. Re7+ {[%emt 0:00:31]} Kf8 {[%emt 0:00:27]} 35. Qh4 {[%emt 0:03:17]} Be8 {[%emt 0:01:12]} 36. Nd4 {[%emt 0:02:04]} Rf7 {[%emt 0:00:42]} 37. Ne6+ {[%emt 0:00:06]} Kg8 {[%emt 0:00:05]} 38. Rxe8+ {[%emt 0:00:05]} 1-0

[Event "European School-ch 2019"]
[Site "Mamaia"]
[Date "2019.06.01"]
[Round "2.25"]
[White "Conon, Catalin"]
[Black "Krawczyk, Flawian"]
[Result "0-1"]
[ECO "A45"]
[WhiteElo "1533"]
[BlackElo "1795"]
[Annotator "NA"]
[PlyCount "116"]
[EventDate "2019.05.31"]
[EventType "swiss"]
[EventCountry "ROU"]
[SourceTitle "playchess.com"]
[Source "ChessBase"]
[SourceQuality "1"]
[TimeControl "40/5400+30:1800+30"]

1. d4 {[%emt 0:00:00]} Nf6 2. Bg5 {[%emt 0:00:00]} g6 {[%emt 0:00:11]} 3. Bxf6 {[%emt 0:00:00]} exf6 {[%emt 0:00:02]} 4. e3 {[%emt 0:00:15]} Bg7 {[%emt 0:00:08]} 5. g3 {[%emt 0:00:07]} O-O {[%emt 0:00:09]} 6. Bg2 {[%emt 0:00:05]} d5 {[%emt 0:00:18]} 7. Ne2 {[%emt 0:00:26]} c6 {[%emt 0:00:10]} 8. O-O {[%emt 0:00:30]} Nd7 {[%emt 0:01:23]} 9. Nd2 {[%emt 0:00:07]} Re8 {[%emt 0:00:58]} 10. Nf4 {[%emt 0:13:24]} f5 {[%emt 0:02:16]} 11. c4 {[%emt 0:06:22]} dxc4 {[%emt 0:01:37]} 12. Nxc4 {[%emt 0:00:13]} Nb6 {[%emt 0:02:17]} 13. Nxb6 {[%emt 0:08:42]} Qxb6 {[%emt 0:01:39]} 14. Qc2 {[%emt 0:02:32]} Be6 {[%emt 0:04:19]} 15. Nxe6 {[%emt 0:08:36]} fxe6 {[%emt 0:01:36]} 16. Qb3 {[%emt 0:04:57]} Qxb3 {[%emt 0:02:48]} 17. axb3 {[%emt 0:00:06]} a6 {[%emt 0:00:16]} 18. f4 {[%emt 0:01:58]} Rad8 {[%emt 0:00:29]} 19. Rac1 {[%emt 0:04:46]} Bf8 {[%emt 0:02:38]} 20. Rfd1 {[%emt 0:00:58]} Rd7 {[%emt 0:01:15]} 21. Kf2 {[%emt 0:02:19]} Red8 {[%emt 0:01:38]} 22. Ke2 {[%emt 0:01:37]} Bb4 {[%emt 0:01:02]} 23. h3 {[%emt 0:02:11]} h5 {[%emt 0:00:50]} 24. Bf3 {[%emt 0:01:11]} Kf7 {[%emt 0:05:46]} 25. g4 {[%emt 0:01:40]} hxg4 {[%emt 0:03:02]} 26. hxg4 {[%emt 0:00:15]} Rh8 {[%emt 0:00:54]} 27. Rh1 {[%emt 0:00:27]} Rxh1 {[%emt 0:02:14]} 28. Rxh1 {[%emt 0:00:06]} Kg7 {[%emt 0:00:05]} 29. gxf5 {[%emt 0:00:56]} exf5 {[%emt 0:00:17]} 30. Rd1 {[%emt 0:03:43]} Kf6 {[%emt 0:01:18]} 31. Rh1 {[%emt 0:02:16]} a5 {[%emt 0:02:25]} 32. Rc1 {[%emt 0:01:04]} Rh7 {[%emt 0:00:19]} 33. Rh1 {[%emt 0:00:09]} Rd7 {[%emt 0:01:05]} 34. Rc1 {[%emt 0:01:02]} Rd8 {[%emt 0:00:43]} 35. Ra1 {[%emt 0:01:46]} Ra8 {[%emt 0:02:24]} 36. Bg2 {[%emt 0:01:33]} Rg8 {[%emt 0:00:28]} 37. Rc1 {[%emt 0:04:12]} g5 {[%emt 0:03:38]} 38. fxg5+ {[%emt 0:00:26]} Rxg5 {[%emt 0:00:29]} 39. Bf3 {[%emt 0:00:31]} Rg6 {[%emt 0:02:39]} 40. d5 {[%emt 0:00:00]} cxd5 {[%emt 0:00:00]} 41. Bxd5 {[%emt 0:01:02]} Rh6 {[%emt 0:01:02]} 42. Rh1 {[%emt 0:00:27]} Rxh1 {[%emt 0:00:05]} 43. Bxh1 {[%emt 0:00:03]} b6 {[%emt 0:00:04]} 44. Kd3 {[%emt 0:08:55]} Ke5 {[%emt 0:00:21]} 45. Bf3 {[%emt 0:01:01]} Bc5 {[%emt 0:00:25]} 46. Bh1 {[%emt 0:01:01]} Kf6 {[%emt 0:02:31]} 47. Bf3 {[%emt 0:00:28]} Kg5 {[%emt 0:01:19]} 48. e4 {[%emt 0:00:36]} f4 {[%emt 0:00:56]} 49. Kc4 {[%emt 0:00:48]} Kh4 {[%emt 0:00:12]} 50. e5 {[%emt 0:01:00]} Kg3 {[%emt 0:00:07]} 51. Bd1 {[%emt 0:00:23]} f3 {[%emt 0:00:10]} 52. Bxf3 {[%emt 0:00:47]} Kxf3 {[%emt 0:00:13]} 53. Kb5 {[%emt 0:01:09]} Ke2 {[%emt 0:00:08]} 54. e6 {[%emt 0:00:05]} Kd2 {[%emt 0:00:22]} 55. e7 {[%emt 0:00:03]} Bxe7 {[%emt 0:00:04]} 56. Kxb6 {[%emt 0:00:05]} Bb4 {[%emt 0:00:05]} 57. Kb5 {[%emt 0:00:16]} Kc2 {[%emt 0:00:06]} 58. Kc4 {[%emt 0:00:22]} Kxb2 {[%emt 0:00:08]} 0-1

[Event "European School-ch 2019"]
[Site "Mamaia"]
[Date "2019.06.01"]
[Round "2.26"]
[White "Ciocani, Iosif"]
[Black "Akkas, Doruk"]
[Result "0-1"]
[ECO "B84"]
[WhiteElo "1740"]
[BlackElo "1565"]
[Annotator "NA"]
[PlyCount "74"]
[EventDate "2019.05.31"]
[EventType "swiss"]
[EventCountry "ROU"]
[SourceTitle "playchess.com"]
[Source "ChessBase"]
[SourceQuality "1"]
[TimeControl "40/5400+30:1800+30"]

1. e4 {[%emt 0:00:00]} c5 {[%emt 0:00:00]} 2. Nf3 {[%emt 0:00:00]} e6 {[%emt 0:04:35]} 3. d4 {[%emt 0:03:35]} cxd4 {[%emt 0:10:44]} 4. Nxd4 {[%emt 0:00:22]} Nf6 {[%emt 0:00:11]} 5. Nc3 {[%emt 0:02:32]} d6 {[%emt 0:01:26]} 6. Be2 {[%emt 0:03:30]} a6 {[%emt 0:00:30]} 7. O-O {[%emt 0:01:15]} Be7 {[%emt 0:01:03]} 8. a4 {[%emt 0:03:32]} O-O {[%emt 0:04:48]} 9. Be3 {[%emt 0:04:15]} Qc7 {[%emt 0:02:25]} 10. a5 {[%emt 0:04:32]} Nbd7 {[%emt 0:02:21]} 11. Nb3 {[%emt 0:02:06]} b6 {[%emt 0:04:06]} 12. axb6 {[%emt 0:08:11]} Nxb6 {[%emt 0:00:09]} 13. Qd4 {[%emt 0:06:20]} Nbd7 {[%emt 0:04:26]} 14. Ra2 {[%emt 0:04:31]} Bb7 {[%emt 0:06:41]} 15. f3 {[%emt 0:05:37]} d5 {[%emt 0:03:41]} 16. exd5 {[%emt 0:02:21]} Nxd5 {[%emt 0:02:27]} 17. Nxd5 {[%emt 0:02:23]} Bxd5 {[%emt 0:01:05]} 18. Qd2 {[%emt 0:08:23]} Nc5 {[%emt 0:13:07]} 19. Bxc5 {[%emt 0:06:15]} Bxc5+ {[%emt 0:00:48]} 20. Kh1 {[%emt 0:00:32]} Rfd8 {[%emt 0:06:47]} 21. Qc3 {[%emt 0:02:45]} Qb6 {[%emt 0:03:06]} 22. Raa1 {[%emt 0:05:29]} Bb4 {[%emt 0:02:50]} 23. Qe5 {[%emt 0:04:32]} a5 {[%emt 0:05:20]} 24. Qg5 {[%emt 0:04:45]} Rac8 {[%emt 0:03:21]} 25. Bd3 {[%emt 0:02:13]} Bxb3 {[%emt 0:01:18]} 26. Bxh7+ {[%emt 0:07:13]} Kxh7 {[%emt 0:00:17]} 27. Qh4+ {[%emt 0:00:51]} Kg8 {[%emt 0:00:27]} 28. cxb3 {[%emt 0:00:21]} Qd4 {[%emt 0:02:03]} 29. f4 {[%emt 0:00:56]} Qxb2 {[%emt 0:02:48]} 30. Rad1 {[%emt 0:02:41]} Rxd1 {[%emt 0:00:55]} 31. Rxd1 {[%emt 0:00:01]} Qxb3 {[%emt 0:01:12]} 32. Rf1 {[%emt 0:02:57]} a4 {[%emt 0:04:43]} 33. f5 {[%emt 0:00:31]} exf5 {[%emt 0:00:55]} 34. Qg5 Qd3 {[%emt 0:02:32]} 35. Rg1 {[%emt 0:01:26]} a3 {[%emt 0:00:16]} 36. Qf4 {[%emt 0:00:28]} Qe4 {[%emt 0:02:15]} 37. Qf1 {[%emt 0:00:33]} Bc5 0-1

[Event "European School-ch 2019"]
[Site "Mamaia"]
[Date "2019.06.01"]
[Round "2.27"]
[White "Kotelnikov, Konstantin"]
[Black "Celik, Hasan Huseyin"]
[Result "0-1"]
[ECO "C11"]
[WhiteElo "1546"]
[BlackElo "1727"]
[Annotator "NA"]
[PlyCount "94"]
[EventDate "2019.05.31"]
[EventType "swiss"]
[EventCountry "ROU"]
[SourceTitle "playchess.com"]
[Source "ChessBase"]
[SourceQuality "1"]
[TimeControl "40/5400+30:1800+30"]

1. e4 {[%emt 0:00:00]} e6 {[%emt 0:00:00]} 2. Nf3 {[%emt 0:00:00]} d5 {[%emt 0:00:00]} 3. Nc3 {[%emt 0:00:02]} Nf6 {[%emt 0:00:00]} 4. e5 {[%emt 0:00:21]} Nfd7 {[%emt 0:00:03]} 5. d4 {[%emt 0:00:13]} c5 {[%emt 0:00:05]} 6. dxc5 {[%emt 0:00:47]} Bxc5 {[%emt 0:02:42]} 7. Bd3 {[%emt 0:01:19]} Nc6 {[%emt 0:00:47]} 8. Bf4 {[%emt 0:01:02]} Be7 {[%emt 0:01:29]} 9. h4 {[%emt 0:09:16]} a6 {[%emt 0:06:35]} 10. Qe2 {[%emt 0:12:59]} Qa5 {[%emt 0:07:50]} 11. O-O {[%emt 0:19:51]} Qb4 {[%emt 0:10:10]} 12. g3 {[%emt 0:11:06]} Qxb2 {[%emt 0:04:43]} 13. Bd2 {[%emt 0:03:58]} Qb6 {[%emt 0:01:57]} 14. Na4 {[%emt 0:02:30]} Qc7 {[%emt 0:01:50]} 15. Rfe1 {[%emt 0:02:52]} b5 {[%emt 0:02:15]} 16. Nc3 {[%emt 0:03:06]} Bb7 {[%emt 0:04:06]} 17. a4 {[%emt 0:03:32]} b4 {[%emt 0:01:45]} 18. Nd1 {[%emt 0:02:16]} Nc5 {[%emt 0:03:17]} 19. Nb2 {[%emt 0:01:52]} Nxd3 {[%emt 0:01:55]} 20. Nxd3 {[%emt 0:01:26]} a5 {[%emt 0:00:18]} 21. c3 {[%emt 0:01:28]} Ba6 {[%emt 0:03:34]} 22. Qe3 {[%emt 0:01:00]} Qa7 {[%emt 0:05:20]} 23. Nd4 {[%emt 0:03:59]} Nxd4 {[%emt 0:01:45]} 24. cxd4 {[%emt 0:00:32]} Bxd3 {[%emt 0:00:07]} 25. Qxd3 {[%emt 0:00:25]} Qa6 {[%emt 0:03:00]} 26. Qf3 {[%emt 0:03:21]} Rc8 {[%emt 0:00:42]} 27. Rac1 {[%emt 0:00:55]} O-O {[%emt 0:00:15]} 28. Qg4 {[%emt 0:01:51]} Rxc1 {[%emt 0:00:28]} 29. Rxc1 {[%emt 0:00:34]} Rc8 {[%emt 0:00:07]} 30. Qd1 {[%emt 0:00:50]} Rc4 {[%emt 0:00:19]} 31. Be3 {[%emt 0:01:36]} Qc6 {[%emt 0:00:21]} 32. Kh2 {[%emt 0:05:01]} Bd8 {[%emt 0:01:45]} 33. Kg2 {[%emt 0:01:31]} Bb6 {[%emt 0:02:03]} 34. Rb1 {[%emt 0:02:20]} Bd8 {[%emt 0:00:42]} 35. Rc1 {[%emt 0:00:13]} Rxc1 {[%emt 0:00:06]} 36. Qxc1 {[%emt 0:00:06]} Qxc1 {[%emt 0:00:06]} 37. Bxc1 {[%emt 0:00:09]} Kf8 {[%emt 0:00:14]} 38. Kf3 {[%emt 0:00:49]} f6 {[%emt 0:00:36]} 39. Ke2 {[%emt 0:01:57]} fxe5 {[%emt 0:00:05]} 40. dxe5 {[%emt 0:00:00]} Bb6 {[%emt 0:00:00]} 41. Bb2 {[%emt 0:00:23]} Kf7 {[%emt 0:00:20]} 42. h5 {[%emt 0:04:45]} g6 {[%emt 0:01:01]} 43. hxg6+ {[%emt 0:04:43]} Kxg6 {[%emt 0:00:31]} 44. g4 {[%emt 0:12:57]} h5 {[%emt 0:00:31]} 45. gxh5+ {[%emt 0:01:19]} Kxh5 {[%emt 0:00:11]} 46. f4 {[%emt 0:02:45]} Kg4 {[%emt 0:00:09]} 47. Bc1 {[%emt 0:01:14]} Bg1 {[%emt 0:00:38]} 0-1

[Event "European School-ch 2019"]
[Site "Mamaia"]
[Date "2019.06.01"]
[Round "2.28"]
[White "Kumar, Sanjit S"]
[Black "Zheng, Harry Z"]
[Result "0-1"]
[ECO "C55"]
[WhiteElo "1392"]
[BlackElo "1653"]
[Annotator "NA"]
[PlyCount "50"]
[EventDate "2019.05.31"]
[EventType "swiss"]
[EventCountry "ROU"]
[SourceTitle "playchess.com"]
[Source "ChessBase"]
[SourceQuality "1"]
[TimeControl "40/5400+30:1800+30"]

1. e4 {[%emt 0:00:00]} e5 {[%emt 0:00:00]} 2. Nf3 {[%emt 0:00:00]} Nc6 {[%emt 0:00:04]} 3. d4 {[%emt 0:00:00]} exd4 {[%emt 0:00:35]} 4. Bc4 {[%emt 0:00:00]} Nf6 {[%emt 0:00:37]} 5. e5 {[%emt 0:00:00]} d5 {[%emt 0:00:29]} 6. Bb5 {[%emt 0:00:05]} Ne4 {[%emt 0:00:44]} 7. Nxd4 {[%emt 0:00:10]} Bd7 {[%emt 0:00:39]} 8. Bxc6 {[%emt 0:00:22]} bxc6 {[%emt 0:01:15]} 9. O-O {[%emt 0:00:19]} Be7 {[%emt 0:02:09]} 10. f3 {[%emt 0:00:29]} Nc5 {[%emt 0:02:37]} 11. Be3 {[%emt 0:05:58]} Ne6 {[%emt 0:08:44]} 12. Nxe6 {[%emt 0:03:41]} fxe6 {[%emt 0:00:51]} 13. c4 {[%emt 0:01:29]} O-O {[%emt 0:01:24]} 14. Nc3 {[%emt 0:01:42]} Rf5 {[%emt 0:11:21]} 15. f4 {[%emt 0:03:50]} Kh8 {[%emt 0:03:19]} 16. Qe2 {[%emt 0:07:04]} Qf8 {[%emt 0:08:01]} 17. Rad1 {[%emt 0:04:07]} Bb4 {[%emt 0:04:25]} 18. Qc2 {[%emt 0:09:25]} Bc5 {[%emt 0:05:50]} 19. Bd4 {[%emt 0:03:31]} Bxd4+ {[%emt 0:04:27]} 20. Rxd4 {[%emt 0:00:09]} c5 {[%emt 0:00:36]} 21. Rd2 {[%emt 0:04:35]} d4 {[%emt 0:03:26]} 22. Ne4 {[%emt 0:02:55]} Rxf4 {[%emt 0:01:28]} 23. Rxf4 {[%emt 0:00:33]} Qxf4 {[%emt 0:00:03]} 24. Nxc5 {[%emt 0:00:11]} Qxe5 {[%emt 0:03:18]} 25. Nxd7 {[%emt 0:01:23]} Qe1# {[%emt 0:00:08]} 0-1

[Event "European School-ch 2019"]
[Site "Mamaia"]
[Date "2019.06.01"]
[Round "2.29"]
[White "Durucay, Uygar"]
[Black "Taragan, Uri"]
[Result "1-0"]
[ECO "A45"]
[WhiteElo "1575"]
[BlackElo "1164"]
[Annotator "NA"]
[PlyCount "55"]
[EventDate "2019.05.31"]
[EventType "swiss"]
[EventCountry "ROU"]
[SourceTitle "playchess.com"]
[Source "ChessBase"]
[SourceQuality "1"]
[TimeControl "40/5400+30:1800+30"]

1. d4 {[%emt 0:00:04]} Nf6 {[%emt 0:00:17]} 2. Bf4 {[%emt 0:01:09]} e6 {[%emt 0:00:57]} 3. e3 {[%emt 0:01:30]} c5 {[%emt 0:07:26]} 4. c3 {[%emt 0:03:56]} Qb6 {[%emt 0:07:33]} 5. Qc2 {[%emt 0:04:11]} Nc6 {[%emt 0:07:35]} 6. Nf3 {[%emt 0:08:49]} d5 {[%emt 0:06:32]} 7. Nbd2 {[%emt 0:07:51]} Bd7 {[%emt 0:05:35]} 8. Bd3 {[%emt 0:02:47]} Be7 {[%emt 0:03:25]} 9. h3 {[%emt 0:01:24]} c4 {[%emt 0:06:08]} 10. Be2 {[%emt 0:04:29]} Qa5 {[%emt 0:05:26]} 11. Ne5 {[%emt 0:00:46]} b5 {[%emt 0:04:40]} 12. e4 {[%emt 0:01:14]} b4 {[%emt 0:03:54]} 13. O-O {[%emt 0:00:35]} O-O {[%emt 0:02:15]} 14. Bg5 {[%emt 0:01:29]} Rfd8 {[%emt 0:01:56]} 15. Nxc6 {[%emt 0:00:14]} Bxc6 {[%emt 0:00:07]} 16. e5 {[%emt 0:00:04]} bxc3 {[%emt 0:05:37]} 17. bxc3 {[%emt 0:00:35]} Ba4 {[%emt 0:01:39]} 18. Qc1 {[%emt 0:01:13]} Ne4 {[%emt 0:04:16]} 19. Nxe4 {[%emt 0:00:29]} Bxg5 {[%emt 0:01:35]} 20. Nxg5 {[%emt 0:00:15]} f6 {[%emt 0:00:36]} 21. exf6 {[%emt 0:00:13]} gxf6 {[%emt 0:00:26]} 22. Nxe6 {[%emt 0:00:18]} Re8 {[%emt 0:00:40]} 23. Bg4 {[%emt 0:00:09]} h5 {[%emt 0:00:59]} 24. Qh6 {[%emt 0:00:18]} Re7 {[%emt 0:00:54]} 25. Qg6+ {[%emt 0:00:32]} Kh8 {[%emt 0:00:23]} 26. Qxf6+ {[%emt 0:00:06]} Kg8 {[%emt 0:00:26]} 27. Qxe7 {[%emt 0:00:14]} hxg4 {[%emt 0:00:22]} 28. Qg7# {[%emt 0:00:13] Kh8} 1-0

[Event "European School-ch 2019"]
[Site "Mamaia"]
[Date "2019.06.01"]
[Round "2.30"]
[White "Anghelescu, Teodor-Stefan"]
[Black "Yasmo, Daniil"]
[Result "1/2-1/2"]
[ECO "D00"]
[WhiteElo "1266"]
[BlackElo "1424"]
[Annotator "NA"]
[PlyCount "29"]
[EventDate "2019.05.31"]
[EventType "swiss"]
[EventCountry "ROU"]
[SourceTitle "playchess.com"]
[Source "ChessBase"]
[SourceQuality "1"]
[TimeControl "40/5400+30:1800+30"]

1. d4 {[%emt 0:00:00]} d5 {[%emt 0:00:00]} 2. Bf4 {[%emt 0:00:00]} Nf6 {[%emt 0:00:04]} 3. e3 {[%emt 0:00:00]} e6 {[%emt 0:00:16]} 4. Bd3 {[%emt 0:00:29]} Bd6 {[%emt 0:00:51]} 5. Bg3 {[%emt 0:00:10]} O-O {[%emt 0:00:58]} 6. Nf3 {[%emt 0:00:41]} b6 {[%emt 0:02:30]} 7. Nbd2 {[%emt 0:00:15]} Bb7 {[%emt 0:01:28]} 8. c3 {[%emt 0:01:22]} c5 {[%emt 0:01:31]} 9. O-O {[%emt 0:00:15]} Nc6 {[%emt 0:01:51]} 10. Ne5 {[%emt 0:02:19]} Qc7 {[%emt 0:07:16]} 11. f4 {[%emt 0:05:14]} Ne7 {[%emt 0:03:42]} 12. Qf3 {[%emt 0:01:48]} Ng6 {[%emt 0:03:43]} 13. Bf2 {[%emt 0:11:02]} Qe7 {[%emt 0:07:32]} 14. g4 Ne8 {[%emt 0:03:34]} 15. a4 {[%emt 0:13:21]} 1/2-1/2

[Event "European School-ch 2019"]
[Site "Mamaia"]
[Date "2019.06.01"]
[Round "2.31"]
[White "Karimli, Yusif"]
[Black "Finta, Marc-Alexandru"]
[Result "1-0"]
[ECO "A05"]
[WhiteElo "1470"]
[BlackElo "1131"]
[Annotator "NA"]
[PlyCount "43"]
[EventDate "2019.05.31"]
[EventType "swiss"]
[EventCountry "ROU"]
[SourceTitle "playchess.com"]
[Source "ChessBase"]
[SourceQuality "1"]
[TimeControl "40/5400+30:1800+30"]

1. Nf3 {[%emt 0:06:52]} Nf6 {[%emt 0:00:00]} 2. g3 {[%emt 0:00:16]} e6 {[%emt 0:00:00]} 3. Bg2 {[%emt 0:00:33]} Bc5 {[%emt 0:00:00]} 4. d4 {[%emt 0:01:09]} Bb6 {[%emt 0:00:00]} 5. O-O {[%emt 0:00:49]} O-O {[%emt 0:00:00]} 6. c4 {[%emt 0:01:03]} c5 {[%emt 0:00:41]} 7. dxc5 {[%emt 0:05:50]} Bxc5 {[%emt 0:00:12]} 8. Nc3 {[%emt 0:01:15]} Nc6 {[%emt 0:01:00]} 9. Bf4 {[%emt 0:02:39]} Re8 {[%emt 0:02:15]} 10. Ne5 {[%emt 0:06:46]} Nxe5 {[%emt 0:05:42]} 11. Bxe5 {[%emt 0:01:19]} d6 {[%emt 0:00:54]} 12. Bd4 {[%emt 0:01:10]} Bxd4 {[%emt 0:00:58]} 13. Qxd4 {[%emt 0:00:17]} e5 {[%emt 0:00:06]} 14. Qd3 {[%emt 0:00:52]} Qc7 {[%emt 0:00:45]} 15. Nb5 {[%emt 0:01:07]} Qb6 {[%emt 0:00:56]} 16. Qxd6 {[%emt 0:00:56]} Qxd6 {[%emt 0:00:43]} 17. Nxd6 {[%emt 0:00:07]} Rd8 {[%emt 0:00:21]} 18. Rfd1 {[%emt 0:02:39]} Rb8 {[%emt 0:01:13]} 19. c5 {[%emt 0:15:25]} b6 {[%emt 0:01:45]} 20. c6 {[%emt 0:00:15]} Ne8 {[%emt 0:01:44]} 21. Nxe8 {[%emt 0:00:09]} Rxe8 {[%emt 0:00:07]} 22. c7 1-0

[Event "European School-ch 2019"]
[Site "Mamaia"]
[Date "2019.06.01"]
[Round "2.32"]
[White "Korovko, Iakov"]
[Black "Paunescu, Stefan-Vlad"]
[Result "1-0"]
[ECO "B40"]
[WhiteElo "1232"]
[BlackElo "1358"]
[Annotator "NA"]
[PlyCount "59"]
[EventDate "2019.05.31"]
[EventType "swiss"]
[EventCountry "ROU"]
[SourceTitle "playchess.com"]
[Source "ChessBase"]
[SourceQuality "1"]
[TimeControl "40/5400+30:1800+30"]

1. e4 {[%emt 0:00:00]} c5 {[%emt 0:00:00]} 2. Nf3 {[%emt 0:00:00]} e6 {[%emt 0:00:00]} 3. b3 {[%emt 0:00:00]} d5 {[%emt 0:00:00]} 4. exd5 {[%emt 0:00:10]} exd5 {[%emt 0:00:09]} 5. d4 {[%emt 0:00:42]} cxd4 {[%emt 0:00:24]} 6. Nxd4 {[%emt 0:00:55]} Nf6 {[%emt 0:00:06]} 7. Be2 {[%emt 0:01:04]} Be7 {[%emt 0:00:18]} 8. O-O {[%emt 0:01:20]} O-O {[%emt 0:00:08]} 9. Bb2 {[%emt 0:02:35]} b6 {[%emt 0:02:16]} 10. Nd2 {[%emt 0:01:32]} a6 {[%emt 0:01:23]} 11. N2f3 {[%emt 0:01:55]} Bb7 {[%emt 0:00:56]} 12. a3 {[%emt 0:03:24]} Re8 {[%emt 0:02:53]} 13. Re1 {[%emt 0:01:10]} Nc6 {[%emt 0:03:15]} 14. Bd3 {[%emt 0:00:50]} Nxd4 {[%emt 0:02:12]} 15. Nxd4 {[%emt 0:01:31]} Bf8 {[%emt 0:04:27]} 16. Qf3 {[%emt 0:02:00]} Bc5 {[%emt 0:10:28]} 17. Nf5 {[%emt 0:01:06]} b5 {[%emt 0:05:12]} 18. Nh6+ {[%emt 0:02:18]} Kf8 {[%emt 0:03:13]} 19. Rxe8+ {[%emt 0:00:20]} Kxe8 {[%emt 0:04:20]} 20. Re1+ {[%emt 0:00:42]} Kf8 {[%emt 0:00:50]} 21. Nf5 {[%emt 0:00:46]} Qb6 {[%emt 0:03:31]} 22. b4 {[%emt 0:02:32]} Bd6 {[%emt 0:01:09]} 23. Bd4 {[%emt 0:00:09]} Qc6 {[%emt 0:00:56]} 24. Nxd6 {[%emt 0:00:09]} Rd8 {[%emt 0:01:17]} 25. Nf5 {[%emt 0:00:20]} Ne4 {[%emt 0:01:49]} 26. Bxg7+ {[%emt 0:00:23]} Ke8 {[%emt 0:00:41]} 27. Qg4 {[%emt 0:02:16]} Rd7 {[%emt 0:02:51]} 28. f3 {[%emt 0:00:41]} f6 {[%emt 0:01:09]} 29. fxe4 {[%emt 0:01:00]} dxe4 {[%emt 0:00:52]} 30. Qxe4+ {[%emt 0:01:15]} 1-0